[Event "Montebelluna Elite 2020"]
[Site "Montebelluna"]
[Date "2020.01.05"]
[Round "8.8"]
[White "Vignesh B"]
[Black "Sankalp Gupta"]
[Result "0-1"]
[ECO "B59"]
[WhiteElo "1912"]
[BlackElo "2400"]
[Annotator "ChessBase"]
[PlyCount "116"]
[EventDate "2020.01.02"]
[EventType "swiss"]
[EventCountry "ITA"]
[SourceTitle "playchess.com"]
[Source "ChessBase"]
[SourceQuality "1"]
[TimeControl "5400+30"]

1. e4 {[%emt 0:00:00]} c5 {[%emt 0:00:00]} 2. Nf3 {[%emt 0:00:10]} Nc6 {[%emt 0:00:00]} 3. d4 {[%emt 0:00:11]} cxd4 {[%emt 0:00:00]} 4. Nxd4 {[%emt 0:00:12]} Nf6 {[%emt 0:00:00]} 5. Nc3 {[%emt 0:00:12]} d6 {[%emt 0:00:00]} 6. Be2 {[%emt 0:00:21]} e5 {[%emt 0:00:00]} 7. Nb3 {[%emt 0:01:07]} Be7 {[%emt 0:00:00]} 8. Be3 {[%emt 0:00:11]} O-O {[%emt 0:00:00]} 9. O-O {[%emt 0:00:10]} Be6 {[%emt 0:00:12]} 10. Kh1 {[%emt 0:00:58]} a5 {[%emt 0:00:02]} 11. f4 {[%emt 0:01:25]} a4 {[%emt 0:01:59]} 12. fxe5 {[%emt 0:00:30]} axb3 {[%emt 0:12:30]} 13. exf6 {[%emt 0:00:09]} bxc2 {[%emt 0:00:05]} 14. Qxc2 {[%emt 0:00:10]} Bxf6 {[%emt 0:00:04]} 15. Nd5 {[%emt 0:03:23]} Be5 {[%emt 0:02:38]} 16. Bf4 {[%emt 0:00:38]} Qh4 {[%emt 0:02:55]} 17. Qd2 {[%emt 0:06:53]} Nd4 {[%emt 0:02:00]} 18. g3 {[%emt 0:06:29]} Qd8 {[%emt 0:00:49]} 19. Be3 {[%emt 0:03:13]} Nxe2 {[%emt 0:00:59]} 20. Qxe2 {[%emt 0:00:04]} f5 {[%emt 0:01:23]} 21. Nf4 {[%emt 0:03:09]} Bd7 {[%emt 0:01:24]} 22. exf5 {[%emt 0:03:10]} Bxf5 {[%emt 0:04:02]} 23. Bd4 {[%emt 0:01:16]} Ra4 {[%emt 0:05:10]} 24. Bxe5 {[%emt 0:02:21]} Be4+ {[%emt 0:00:16]} 25. Ng2 {[%emt 0:03:20]} dxe5 {[%emt 0:01:56]} 26. Rad1 {[%emt 0:00:42]} Rxf1+ {[%emt 0:00:49]} 27. Qxf1 {[%emt 0:00:19]} Rd4 {[%emt 0:00:32]} 28. Rxd4 {[%emt 0:02:00]} exd4 {[%emt 0:05:12]} 29. Qc4+ {[%emt 0:00:11]} Qd5 {[%emt 0:07:52]} 30. Qxd5+ {[%emt 0:01:25]} Bxd5 {[%emt 0:00:12]} 31. Kg1 {[%emt 0:00:10]} Bxa2 {[%emt 0:00:05]} 32. Kf2 {[%emt 0:01:21]} Kf7 {[%emt 0:00:30]} 33. Nf4 {[%emt 0:00:25]} Kf6 {[%emt 0:00:46]} 34. Nd3 {[%emt 0:01:40]} Bd5 {[%emt 0:00:54]} 35. Nf4 {[%emt 0:03:33]} Be4 {[%emt 0:01:28]} 36. h4 {[%emt 0:01:06]} Ke5 {[%emt 0:01:29]} 37. Ke2 {[%emt 0:04:25]} Bf5 {[%emt 0:01:02]} 38. Kd2 {[%emt 0:05:06]} Ke4 {[%emt 0:00:22]} 39. Nh5 {[%emt 0:01:19]} g6 {[%emt 0:06:30]} 40. Nf6+ {[%emt 0:00:12]} Kf3 {[%emt 0:00:02]} 41. g4 {[%emt 0:00:56]} Bxg4 {[%emt 0:04:35]} 42. Nxh7 {[%emt 0:00:02]} Kg3 {[%emt 0:00:01]} 43. Kd3 {[%emt 0:00:32]} Kxh4 {[%emt 0:00:02]} 44. Kxd4 {[%emt 0:00:01]} g5 {[%emt 0:00:16]} 45. Ke3 {[%emt 0:00:27]} Bd7 {[%emt 0:00:32]} 46. Nf6 {[%emt 0:02:21]} Bc6 {[%emt 0:00:05]} 47. Ng8 {[%emt 0:00:09]} g4 {[%emt 0:00:34]} 48. Kf2 {[%emt 0:00:57]} g3+ {[%emt 0:00:18]} 49. Kg1 {[%emt 0:00:15]} Kg5 {[%emt 0:00:10]} 50. Ne7 {[%emt 0:00:07]} Be4 {[%emt 0:00:24]} 51. Nc8 {[%emt 0:00:08]} Kf4 {[%emt 0:00:09]} 52. Nd6 {[%emt 0:01:13]} Ke5 {[%emt 0:00:17]} 53. Nb5 {[%emt 0:01:00]} Bc6 {[%emt 0:00:10]} 54. Nc3 {[%emt 0:00:06]} Bf3 {[%emt 0:00:26]} 55. Nb1 {[%emt 0:00:26]} Kd4 {[%emt 0:00:52]} 56. Nd2 {[%emt 0:00:20]} Bc6 {[%emt 0:00:15]} 57. Nf1 {[%emt 0:00:31]} g2 {[%emt 0:00:04]} 58. Ng3 {[%emt 0:01:05]} Kc4 {[%emt 0:00:16]} 0-1

[Event "Montebelluna Elite 2020"]
[Site "Montebelluna"]
[Date "2020.01.05"]
[Round "8.9"]
[White "Loiacono, Antonio"]
[Black "Yurtseven, Melih"]
[Result "1/2-1/2"]
[ECO "C10"]
[WhiteElo "2295"]
[BlackElo "2385"]
[Annotator "ChessBase"]
[PlyCount "65"]
[EventDate "2020.01.02"]
[EventType "swiss"]
[EventCountry "ITA"]
[SourceTitle "playchess.com"]
[Source "ChessBase"]
[SourceQuality "1"]
[TimeControl "5400+30"]

1. e4 {[%emt 0:00:00]} e6 {[%emt 0:02:00]} 2. d4 {[%emt 0:00:00]} d5 {[%emt 0:00:05]} 3. Nc3 {[%emt 0:00:00]} dxe4 {[%emt 0:00:05]} 4. Nxe4 {[%emt 0:00:00]} Nd7 {[%emt 0:00:05]} 5. g3 {[%emt 0:01:17]} Ngf6 {[%emt 0:00:32]} 6. Nxf6+ {[%emt 0:00:34]} Nxf6 {[%emt 0:01:20]} 7. Bg2 {[%emt 0:00:16]} c5 {[%emt 0:02:08]} 8. Ne2 {[%emt 0:01:46]} cxd4 {[%emt 0:03:31]} 9. Qxd4 {[%emt 0:04:16]} Bd6 {[%emt 0:08:48]} 10. O-O {[%emt 0:06:25]} Qc7 {[%emt 0:00:21]} 11. Bg5 {[%emt 0:09:11]} Be5 {[%emt 0:10:19]} 12. Qd3 {[%emt 0:12:53]} Bd7 {[%emt 0:02:53]} 13. Bf4 {[%emt 0:11:17]} Bxf4 {[%emt 0:02:04]} 14. Nxf4 {[%emt 0:00:08]} O-O {[%emt 0:00:12]} 15. Rad1 {[%emt 0:09:16]} Rac8 {[%emt 0:02:54]} 16. c3 {[%emt 0:03:28]} Qb6 {[%emt 0:15:10]} 17. Qb1 {[%emt 0:08:07]} Bc6 {[%emt 0:02:03]} 18. h3 {[%emt 0:06:10]} Bxg2 {[%emt 0:01:54]} 19. Kxg2 {[%emt 0:00:23]} Qc6+ {[%emt 0:00:35]} 20. f3 {[%emt 0:00:29]} e5 {[%emt 0:04:16]} 21. Nd3 {[%emt 0:03:27]} Rfe8 {[%emt 0:01:01]} 22. Nb4 {[%emt 0:01:45]} Qe6 {[%emt 0:04:05]} 23. Rfe1 {[%emt 0:01:22]} a5 {[%emt 0:03:27]} 24. Nd3 {[%emt 0:00:40]} e4 {[%emt 0:06:31]} 25. fxe4 {[%emt 0:01:40]} Qc6 {[%emt 0:00:06]} 26. Nf2 {[%emt 0:00:35]} h5 {[%emt 0:00:02]} 27. h4 {[%emt 0:02:45]} Re5 {[%emt 0:03:34]} 28. Rd4 {[%emt 0:02:42]} Rce8 {[%emt 0:16:00]} 29. Qd3 {[%emt 0:00:53]} Nxe4 {[%emt 0:03:08]} 30. Nxe4 {[%emt 0:00:36]} f5 {[%emt 0:00:55]} 31. Qc4+ {[%emt 0:01:29]} Qxc4 {[%emt 0:00:06]} 32. Rxc4 {[%emt 0:00:02]} fxe4 {[%emt 0:00:15]} 33. Rc7 {[%emt 0:01:36]} 1/2-1/2

[Event "Montebelluna Elite 2020"]
[Site "Montebelluna"]
[Date "2020.01.06"]
[Round "9.4"]
[White "Sankalp Gupta"]
[Black "Radovanovic, Mihajlo"]
[Result "1-0"]
[ECO "B56"]
[WhiteElo "2400"]
[BlackElo "2485"]
[Annotator "RC"]
[PlyCount "103"]
[EventDate "2020.01.02"]
[EventType "swiss"]
[EventCountry "ITA"]
[SourceTitle "playchess.com"]
[Source "ChessBase"]
[SourceQuality "1"]
[TimeControl "5400+30"]

1. e4 {[%emt 0:04:23]} c5 {[%emt 0:00:00]} 2. Nf3 {[%emt 0:00:03]} d6 {[%emt 0:00:00]} 3. d4 {[%emt 0:00:02]} cxd4 4. Nxd4 {[%emt 0:00:03]} Nf6 {[%emt 0:00:11]} 5. Nc3 {[%emt 0:00:02]} a6 {[%emt 0:00:04]} 6. Nb3 {[%emt 0:00:04]} Nc6 {[%emt 0:01:02]} 7. Be3 {[%emt 0:00:11]} e6 {[%emt 0:01:56]} 8. g4 {[%emt 0:00:05]} h6 {[%emt 0:02:01]} 9. Bg2 {[%emt 0:00:09]} Ne5 {[%emt 0:03:28]} 10. h3 {[%emt 0:00:26]} g5 {[%emt 0:00:31]} 11. Qe2 {[%emt 0:02:32]} b5 {[%emt 0:02:22]} 12. O-O-O {[%emt 0:04:49]} b4 {[%emt 0:05:16]} 13. Na4 {[%emt 0:00:38]} Nfd7 {[%emt 0:02:38]} 14. h4 {[%emt 0:16:04]} Rg8 {[%emt 0:02:22]} 15. hxg5 hxg5 {[%emt 0:00:12]} 16. Rh5 {[%emt 0:11:34]} a5 {[%emt 0:12:00]} 17. f3 {[%emt 0:02:39]} Qc7 {[%emt 0:05:14]} 18. Kb1 {[%emt 0:06:13]} Be7 {[%emt 0:18:51]} 19. Qf2 {[%emt 0:05:26]} Rb8 {[%emt 0:01:29]} 20. Bf1 {[%emt 0:01:03]} Nf6 {[%emt 0:02:33]} 21. Bb6 {[%emt 0:11:50]} Qd7 {[%emt 0:01:20]} 22. Nac5 {[%emt 0:03:03]} Qc6 {[%emt 0:10:38]} 23. Ba7 {[%emt 0:00:02]} Qc7 {[%emt 0:00:31]} 24. Na6 {[%emt 0:03:20]} Bxa6 {[%emt 0:00:09]} 25. Bxb8 {[%emt 0:00:03]} Qxb8 {[%emt 0:00:26]} 26. Bxa6 {[%emt 0:00:02]} Nxh5 {[%emt 0:01:38]} 27. gxh5 {[%emt 0:00:57]} a4 {[%emt 0:04:21]} 28. Nd4 {[%emt 0:00:29]} a3 {[%emt 0:00:04]} 29. Bb5+ {[%emt 0:03:15]} Kf8 {[%emt 0:01:10]} 30. f4 {[%emt 0:02:17]} gxf4 {[%emt 0:00:20]} 31. Qxf4 {[%emt 0:00:30]} Rg4 {[%emt 0:00:06]} 32. Qf2 {[%emt 0:02:25]} Kg7 {[%emt 0:02:24]} 33. Be2 {[%emt 0:06:58]} Rg5 {[%emt 0:01:05]} 34. Rh1 {[%emt 0:02:22]} Kh6 {[%emt 0:00:52]} 35. Qe3 {[%emt 0:00:56]} Qc8 {[%emt 0:02:38]} 36. Rf1 {[%emt 0:00:40]} Qc5 {[%emt 0:01:00]} 37. Qd2 {[%emt 0:01:25]} Kg7 {[%emt 0:04:23]} 38. Nb3 {[%emt 0:01:08]} Qb6 {[%emt 0:00:34]} 39. Qf4 {[%emt 0:02:08]} Rg2 {[%emt 0:00:54]} 40. Qd2 {[%emt 0:02:33]} Bg5 {[%emt 0:00:26]} 41. Qd1 {[%emt 0:00:54]} Qe3 {[%emt 0:02:26]} 42. Qxd6 {[%emt 0:03:27]} Qxe4 {[%emt 0:00:29]} 43. Bd1 {[%emt 0:00:42]} Nc4 {[%emt 0:02:59]} 44. Qc7 {[%emt 0:00:06]} Bf6 {[%emt 0:00:26]} 45. h6+ {[%emt 0:00:45]} Kg6 {[%emt 0:01:55]} 46. h7 {[%emt 0:00:57]} Qe5 {[%emt 0:01:56]} 47. h8=N+ {[%emt 0:01:41]} Bxh8 {[%emt 0:00:50]} 48. Qxf7+ {[%emt 0:00:01]} Kh6 {[%emt 0:00:30]} 49. Rh1+ {[%emt 0:00:10]} Rh2 {[%emt 0:01:57]} 50. Rxh2+ {[%emt 0:00:01]} Qxh2 {[%emt 0:00:01]} 51. Qxe6+ {[%emt 0:00:08]} Kg5 {[%emt 0:00:05]} 52. Qg4+ {[%emt 0:00:09]} 1-0